[Event "Polish University-ch Teams 2024"]
[Site "Lublin"]
[Date "2024.02.25"]
[Round "6.13"]
[White "Dzida, Kamil"]
[Black "Zaleski, Lukasz"]
[Result "1-0"]
[ECO "C11"]
[WhiteElo "2403"]
[BlackElo "2182"]
[Annotator "TA"]
[PlyCount "49"]
[EventDate "2024.02.22"]
[EventType "team-tourn"]
[EventCountry "POL"]
[SourceTitle "playchess.com"]
[Source "ChessBase"]
[SourceQuality "1"]
[TimeControl "900+5"]

{[%evp 16,48,17,24,24,0,32,29,31,22,181,190,198,179,187,182,193,189,194,165,558,473,466,250,211,226,219,111,104,116,29997,29998,29998,29999,29999]} 1. e4 {[%emt 0:00:03][%cal Be2e4,Be4e5][%mdl 32]} e6 {[%emt 0:00:23]} 2. d4 {[%emt 0:00:03]} d5 {[%emt 0:00:02]} 3. Nc3 {[%emt 0:00:02]} Nf6 {[%emt 0:00:02]} 4. e5 {[%emt 0:00:03]} Nfd7 {[%emt 0:00:02]} 5. f4 {[%emt 0:00:03]} c5 {[%emt 0:00:01]} 6. Nf3 {[%emt 0:00:02]} Nc6 {[%emt 0:00:04]} 7. Be3 {[%emt 0:00:02]} Be7 {[%emt 0:00:03]} 8. Qd2 {[%emt 0:00:03]} O-O {[%emt 0:00:05]} 9. dxc5 {[%emt 0:00:02]} Nxc5 {[%emt 0:00:04]} 10. O-O-O {[%emt 0:00:10]} Qa5 {[%emt 0:02:30][%cal Ob7b5]} 11. Kb1 {[%emt 0:00:08]} a6 {[%emt 0:02:34] White has an edge.} 12. Nd4 {[%emt 0:00:21]} Nxd4 {[%emt 0:01:57]} (12... Qc7 $11) 13. Nxd5 $18 {[%emt 0:00:05]} (13. Bxd4 $6 Nd7 $16) 13... Qd8 {[%emt 0:03:06]} 14. Nxe7+ {[%emt 0:00:04]} (14. Qxd4 $2 exd5 (14... Qxd5 $2 15. Qxd5 exd5 16. Be2 $19) 15. Be2 Bf5 16. Qxd5 Qc7 $19) 14... Qxe7 {[%emt 0:00:02]} 15. Qxd4 {[%emt 0:00:16]} b6 {[%emt 0:00:31][%cal Bb7b6,Bb6c5][%mdl 32] Black is weak on the dark squares} 16. Qd6 {[%emt 0:00:30]} Qb7 {[%emt 0:01:52]} 17. Be2 {[%emt 0:00:29] [#] aiming for Bf3.} Qxg2 {[%emt 0:00:14]} (17... Qa7 {is tougher.} 18. Rhf1 Rb8) 18. Rhg1 {[%emt 0:00:02]} (18. Bxc5 bxc5 19. Rhg1 Qf2 $14 (19... Qxe2 20. Rxg7+ Kxg7 21. Rg1+ Kh6 22. Qxf8+ Kh5 23. Rg5+ Kh4 24. Qh6+)) (18. Qxb6 $2 Nd7 19. Rxd7 Bxd7 $19) 18... Qxh2 {[%emt 0:00:55]} (18... Qxe2 19. Rxg7+ (19. Bxc5 Bb7 $16) 19... Kxg7 20. Rg1+ (20. Bxc5 $2 Bb7 $19) (20. Bxc5 $2 Bb7 $19)) 19. Bxc5 {[%emt 0:07:16]} (19. Rxg7+ $142 Kxg7 20. Rg1+ (20. Bxc5 bxc5 21. Qe7 Qh6 $17) 20... Qxg1+ 21. Bxg1) 19... bxc5 {[%emt 0:00:02]} 20. Bf3 {[%emt 0:00:01] Prevents Bb7} Ra7 {[%emt 0:00:32]} 21. Rg2 $40 {[%emt 0:00:21][%mdl 128] Black is in trouble.} (21. Qxc5 Rd7 $18) ({White should try} 21. Bc6 $18 {[%cal Od6f8] Intending Qxf8+! and mate.} g6 (21... Qxf4 22. Qxf8+ Kxf8 23. Rd8+ Ke7 24. Re8#) 22. Qxc5) 21... Qh6 $16 {[%emt 0:00:36]} (21... Qxf4 22. Rxg7+ (22. Qxc5 g6 $16) 22... Kxg7 23. Rg1+ (23. Qxc5 $2 Re8 $19) (23. Qxc5 $2 Re8 $19)) 22. Bc6 {[%emt 0:00:02][%cal Od6f8] Prevents Rd7. Qxf8+! would kill now. White is much more active.} Bb7 $2 {[%emt 0:00:35][%mdl 8192] [#]} ({And not} 22... Qxf4 23. Qxf8+ (23. Qxc5 g6 $18) (23. Rxg7+ Kxg7 24. Rg1+ Kh6 25. Qxf8+ Kh5 26. Qg8 Bb7 27. Qxh7+ Qh6 28. Qxf7+ Kh4 29. Qf2+ Kh5 30. Qh2#) 23... Kxf8 24. Rd8+ Ke7 25. Re8#) (22... f6 $16) 23. Qxf8+ $3 {[%emt 0:00:08][%mdl 512] White mates.} Kxf8 {[%emt 0:00:02]} 24. Rd8+ {[%emt 0:00:02]} Ke7 {[%emt 0:00:02]} 25. Re8# {[%emt 0:00:00] Weighted Error Value: White=0.39/Black=0.74.  Loses game:     	---       	Black=1      Mistake:       	White=2     	Black=2      Inaccurate:     	---       	Black=1      OK:         	White=9     	Black=6      Best:        	White=1     	Black=1      Brilliant:      	White=1     	---} 1-0

[Event "Polish University-ch Teams 2024"]
[Site "Lublin"]
[Date "2024.02.25"]
[Round "6.14"]
[White "Demianowicz, Maciej"]
[Black "Klepek, Witold"]
[Result "1/2-1/2"]
[ECO "B30"]
[WhiteElo "1972"]
[BlackElo "2262"]
[Annotator "RC"]
[PlyCount "79"]
[EventDate "2024.02.22"]
[EventType "team-tourn"]
[EventCountry "POL"]
[SourceTitle "playchess.com"]
[Source "ChessBase"]
[SourceQuality "1"]
[TimeControl "900+5"]

1. e4 {[%emt 0:00:29]} c5 {[%emt 0:00:02]} 2. Nf3 {[%emt 0:00:01]} Nc6 {[%emt 0:00:01]} 3. Bb5 {[%emt 0:00:01]} a6 {[%emt 0:00:19]} 4. Bxc6 {[%emt 0:00:04]} dxc6 {[%emt 0:00:01]} 5. O-O {[%emt 0:00:06]} Qc7 {[%emt 0:00:15]} 6. h3 {[%emt 0:00:05]} e5 {[%emt 0:00:01]} 7. c3 {[%emt 0:00:05]} Bd6 {[%emt 0:00:28]} 8. d4 {[%emt 0:00:09]} cxd4 {[%emt 0:00:12]} 9. cxd4 {[%emt 0:00:01]} Ne7 {[%emt 0:00:01]} 10. Nc3 {[%emt 0:00:27]} O-O {[%emt 0:00:20]} 11. dxe5 {[%emt 0:00:51]} Bxe5 {[%emt 0:00:01]} 12. Nxe5 {[%emt 0:00:01]} Qxe5 {[%emt 0:00:02]} 13. Be3 {[%emt 0:00:01]} Qc7 {[%emt 0:04:07]} 14. a4 {[%emt 0:00:29]} Be6 {[%emt 0:01:39]} 15. a5 {[%emt 0:00:17]} c5 {[%emt 0:00:01]} 16. f4 {[%emt 0:00:07]} f5 {[%emt 0:00:18]} 17. Qc2 {[%emt 0:01:40]} Rae8 {[%emt 0:02:25]} 18. Nd5 {[%emt 0:02:22]} Nxd5 {[%emt 0:01:20]} 19. exd5 {[%emt 0:00:01]} Bxd5 {[%emt 0:00:03]} 20. Qxc5 {[%emt 0:00:03]} Qxc5 {[%emt 0:01:51]} 21. Bxc5 {[%emt 0:00:01]} Re2 {[%emt 0:00:01]} 22. Rf2 {[%emt 0:00:12]} Rfe8 {[%emt 0:00:01]} 23. Rd1 {[%emt 0:00:28]} Bc6 {[%emt 0:00:02]} 24. Rd2 {[%emt 0:00:40]} Re1+ {[%emt 0:00:08]} 25. Kh2 {[%emt 0:00:02]} Ra1 {[%emt 0:00:16]} 26. Bb4 {[%emt 0:00:16]} Kf7 {[%emt 0:00:30]} 27. Rfe2 {[%emt 0:00:08]} Rxe2 {[%emt 0:00:04]} 28. Rxe2 {[%emt 0:00:00]} Ra4 {[%emt 0:00:01]} 29. Bd6 {[%emt 0:00:50]} Rxa5 {[%emt 0:00:07]} 30. Re7+ {[%emt 0:00:02]} Kf6 {[%emt 0:00:21]} 31. Rc7 {[%emt 0:00:15]} Rd5 {[%emt 0:00:34]} 32. Be5+ {[%emt 0:00:02]} Ke6 {[%emt 0:00:02]} 33. Rxg7 {[%emt 0:00:02]} Rd2 {[%emt 0:00:01]} 34. h4 {[%emt 0:00:06]} a5 {[%emt 0:00:21]} 35. h5 {[%emt 0:00:03]} a4 {[%emt 0:00:21]} 36. Kh3 {[%emt 0:00:25]} Rd7 {[%emt 0:00:02]} 37. Rxd7 {[%emt 0:00:09]} Bxd7 {[%emt 0:00:02]} 38. Kh4 {[%emt 0:00:12]} b5 {[%emt 0:00:21]} 39. Kg5 {[%emt 0:00:01]} Be8 {[%emt 0:00:09]} 40. Bc3 {[%emt 0:06:05]} 1/2-1/2

[Event "Polish University-ch Teams 2024"]
[Site "Lublin"]
[Date "2024.02.25"]
[Round "6.15"]
[White "Golenia, Jan"]
[Black "Rogala, Milosz"]
[Result "1-0"]
[ECO "D45"]
[WhiteElo "2221"]
[BlackElo "1839"]
[Annotator "RC"]
[PlyCount "59"]
[EventDate "2024.02.22"]
[EventType "team-tourn"]
[EventCountry "POL"]
[SourceTitle "playchess.com"]
[Source "ChessBase"]
[SourceQuality "1"]
[TimeControl "900+5"]

1. d4 {[%emt 0:00:14]} d5 {[%emt 0:00:13]} 2. c4 {[%emt 0:00:07]} c6 {[%emt 0:00:09]} 3. Nc3 {[%emt 0:00:12]} Nf6 {[%emt 0:00:19]} 4. Nf3 {[%emt 0:00:02]} e6 {[%emt 0:00:13]} 5. e3 {[%emt 0:00:03]} Nbd7 {[%emt 0:00:13]} 6. Qc2 {[%emt 0:00:02]} a6 {[%emt 0:00:16]} 7. Bd3 {[%emt 0:03:28]} dxc4 {[%emt 0:02:35]} 8. Bxc4 {[%emt 0:00:02]} b5 {[%emt 0:00:01]} 9. Be2 {[%emt 0:01:18]} Bb7 {[%emt 0:00:32]} 10. O-O {[%emt 0:00:10]} c5 {[%emt 0:00:09]} 11. Rd1 {[%emt 0:01:31]} Qc7 {[%emt 0:02:56]} 12. dxc5 {[%emt 0:05:15]} Bxc5 {[%emt 0:01:02]} 13. Bd3 {[%emt 0:00:16]} O-O {[%emt 0:02:27]} 14. Ne4 {[%emt 0:00:07]} Nxe4 {[%emt 0:00:52]} 15. Bxe4 {[%emt 0:00:02]} Bxe4 {[%emt 0:00:01]} 16. Qxe4 {[%emt 0:00:01]} Nf6 {[%emt 0:00:04]} 17. Qc2 {[%emt 0:00:40]} Rac8 {[%emt 0:00:41]} 18. Bd2 {[%emt 0:00:24]} Qe7 {[%emt 0:01:30]} 19. Rac1 {[%emt 0:00:14]} h6 {[%emt 0:00:45]} 20. b4 {[%emt 0:00:34]} Bxb4 {[%emt 0:00:14]} 21. Qxc8 {[%emt 0:00:01]} Rxc8 {[%emt 0:00:01]} 22. Rxc8+ {[%emt 0:00:02]} Kh7 {[%emt 0:00:01]} 23. Bxb4 {[%emt 0:00:32]} Qxb4 {[%emt 0:00:01]} 24. h3 {[%emt 0:00:27]} Qa4 {[%emt 0:00:05]} 25. Rd2 {[%emt 0:00:02]} Qa5 {[%emt 0:00:08]} 26. Rdc2 {[%emt 0:00:17]} Nd5 {[%emt 0:00:01]} 27. Ne5 {[%emt 0:00:19]} Nb4 {[%emt 0:00:48]} 28. Rd2 {[%emt 0:00:11]} Nxa2 {[%emt 0:00:09]} 29. Rdd8 {[%emt 0:00:01]} g5 {[%emt 0:00:35]} 30. Rf8 {[%emt 0:00:02]} 1-0

[Event "Polish University-ch Teams 2024"]
[Site "Lublin"]
[Date "2024.02.25"]
[Round "6.16"]
[White "Poplawski, Maciej"]
[Black "Golenia, Wojciech"]
[Result "0-1"]
[ECO "C13"]
[WhiteElo "1900"]
[BlackElo "2212"]
[Annotator "RC"]
[PlyCount "52"]
[EventDate "2024.02.22"]
[EventType "team-tourn"]
[EventCountry "POL"]
[SourceTitle "playchess.com"]
[Source "ChessBase"]
[SourceQuality "1"]
[TimeControl "900+5"]

1. d4 {[%emt 0:00:49]} Nf6 {[%emt 0:00:13]} 2. Nc3 {[%emt 0:00:09]} d5 {[%emt 0:00:37]} 3. Bg5 {[%emt 0:00:05]} e6 {[%emt 0:01:43]} 4. e4 {[%emt 0:00:09]} dxe4 {[%emt 0:00:44]} 5. Nxe4 {[%emt 0:00:03]} Nbd7 {[%emt 0:00:19]} 6. c3 {[%emt 0:01:31]} Be7 {[%emt 0:00:47]} 7. Nxf6+ {[%emt 0:00:18]} Nxf6 {[%emt 0:00:28]} 8. Bd3 {[%emt 0:00:24]} O-O {[%emt 0:03:28]} 9. Qf3 {[%emt 0:03:00]} Qd5 {[%emt 0:01:41]} 10. h4 {[%emt 0:02:00]} Qxf3 {[%emt 0:01:16]} 11. Nxf3 {[%emt 0:00:03]} c5 {[%emt 0:00:21]} 12. O-O {[%emt 0:01:52]} Rd8 {[%emt 0:01:51]} 13. Rfe1 {[%emt 0:01:27]} h6 {[%emt 0:00:20]} 14. Bf4 {[%emt 0:01:25]} b6 {[%emt 0:00:18]} 15. Bb5 {[%emt 0:00:36]} Bb7 {[%emt 0:00:21]} 16. Bc7 {[%emt 0:00:12]} Rdc8 {[%emt 0:00:08]} 17. Be5 {[%emt 0:00:45]} a6 {[%emt 0:00:26]} 18. Ba4 {[%emt 0:00:17]} b5 {[%emt 0:00:07]} 19. Bb3 {[%emt 0:00:01]} Bxf3 {[%emt 0:00:24]} 20. gxf3 {[%emt 0:00:02]} c4 {[%emt 0:00:33]} 21. Bc2 {[%emt 0:00:02]} Nd5 {[%emt 0:00:03]} 22. Bg3 {[%emt 0:00:54]} a5 {[%emt 0:00:07]} 23. Be4 {[%emt 0:00:01]} Rd8 {[%emt 0:00:24]} 24. b3 {[%emt 0:00:14]} Rac8 {[%emt 0:00:07]} 25. Bxd5 {[%emt 0:00:14]} Rxd5 {[%emt 0:00:01]} 26. Re3 {[%emt 0:00:27]} b4 {[%emt 0:00:07]} 0-1

[Event "Polish University-ch Teams 2024"]
[Site "Lublin"]
[Date "2024.02.25"]
[Round "6.17"]
[White "Babiarz, Arkadiusz"]
[Black "Twardowski, Hubert"]
[Result "0-1"]
[ECO "B54"]
[WhiteElo "2159"]
[BlackElo "1848"]
[Annotator "RC"]
[PlyCount "72"]
[EventDate "2024.02.22"]
[EventType "team-tourn"]
[EventCountry "POL"]
[SourceTitle "playchess.com"]
[Source "ChessBase"]
[SourceQuality "1"]
[TimeControl "900+5"]

1. e4 {[%emt 0:00:23]} c5 {[%emt 0:00:02]} 2. Nf3 {[%emt 0:00:01]} Nc6 {[%emt 0:00:02]} 3. Bb5 {[%emt 0:00:02]} d6 {[%emt 0:00:02]} 4. d4 {[%emt 0:00:02]} cxd4 {[%emt 0:00:15]} 5. Nxd4 {[%emt 0:00:20]} Bd7 {[%emt 0:00:04]} 6. Nxc6 {[%emt 0:00:47]} Bxc6 {[%emt 0:01:01]} 7. Bxc6+ {[%emt 0:01:09]} bxc6 {[%emt 0:00:02]} 8. c4 {[%emt 0:00:01]} Nf6 {[%emt 0:00:21]} 9. Nc3 {[%emt 0:00:02]} g6 {[%emt 0:01:08]} 10. O-O {[%emt 0:00:04]} Bg7 {[%emt 0:00:01]} 11. Be3 {[%emt 0:00:09]} O-O {[%emt 0:00:07]} 12. Rc1 {[%emt 0:00:32]} Qa5 {[%emt 0:03:32]} 13. f3 {[%emt 0:00:09]} Rfd8 {[%emt 0:00:06]} 14. Qe2 {[%emt 0:00:44]} d5 {[%emt 0:01:57]} 15. exd5 {[%emt 0:00:21]} cxd5 {[%emt 0:00:03]} 16. Rfd1 {[%emt 0:00:02]} e6 {[%emt 0:00:37]} 17. Bf2 {[%emt 0:02:57]} h6 {[%emt 0:01:30]} 18. a3 {[%emt 0:00:21]} Qa6 {[%emt 0:00:26]} 19. Nb5 {[%emt 0:00:44]} Rac8 {[%emt 0:00:57]} 20. Nxa7 {[%emt 0:00:08]} Rb8 {[%emt 0:00:54]} 21. b4 {[%emt 0:00:39]} dxc4 {[%emt 0:00:34]} 22. b5 {[%emt 0:01:05]} Qa4 {[%emt 0:01:29]} 23. Rxd8+ {[%emt 0:01:55]} Rxd8 {[%emt 0:00:09]} 24. b6 {[%emt 0:00:02]} Nd5 {[%emt 0:00:32]} 25. Qxc4 {[%emt 0:01:42]} Nxb6 {[%emt 0:00:44]} 26. Bxb6 {[%emt 0:01:21]} Rd1+ {[%emt 0:00:07]} 27. Kf2 {[%emt 0:00:02]} Rd2+ {[%emt 0:00:22]} 28. Kg3 {[%emt 0:00:01]} Be5+ {[%emt 0:00:11]} 29. f4 {[%emt 0:00:52]} Qxa3+ {[%emt 0:00:05]} 30. Rc3 {[%emt 0:00:50]} Qxc3+ {[%emt 0:00:03]} 31. Qxc3 {[%emt 0:00:02]} Bxc3 {[%emt 0:00:01]} 32. Nc6 {[%emt 0:00:10]} Rd6 {[%emt 0:00:11]} 33. Ne7+ {[%emt 0:00:01]} Kg7 {[%emt 0:00:05]} 34. Bc5 {[%emt 0:00:15]} Rd3+ {[%emt 0:00:07]} 35. Kf2 {[%emt 0:00:00]} Bf6 {[%emt 0:00:01]} 36. Nc6 {[%emt 0:00:04]} Rc3 {[%emt 0:00:02]} 0-1

[Event "Polish University-ch Teams 2024"]
[Site "Lublin"]
[Date "2024.02.25"]
[Round "6.18"]
[White "Lascar, Radoslawa"]
[Black "Furtak, Joanna"]
[Result "1/2-1/2"]
[ECO "B32"]
[WhiteElo "1804"]
[BlackElo "1883"]
[Annotator "NA RC"]
[PlyCount "135"]
[EventDate "2024.02.22"]
[EventType "team-tourn"]
[EventCountry "POL"]
[SourceTitle "playchess.com"]
[Source "ChessBase"]
[SourceQuality "1"]
[TimeControl "900+5"]

1. e4 {[%emt 0:00:02]} c5 {[%emt 0:00:01]} 2. Nf3 {[%emt 0:00:03]} Nc6 {[%emt 0:00:01]} 3. d4 {[%emt 0:00:03]} cxd4 {[%emt 0:00:02]} 4. Nxd4 {[%emt 0:00:01]} Qb6 {[%emt 0:00:01]} 5. Nxc6 {[%emt 0:01:24]} bxc6 {[%emt 0:00:03]} 6. Nc3 {[%emt 0:00:38]} e5 {[%emt 0:01:18]} 7. Bc4 {[%emt 0:00:41]} Nf6 {[%emt 0:00:25]} 8. O-O {[%emt 0:01:07]} Be7 {[%emt 0:00:04]} 9. Kh1 {[%emt 0:02:05]} d6 {[%emt 0:01:04]} 10. Bb3 {[%emt 0:00:33]} Ba6 {[%emt 0:00:50]} 11. Be3 {[%emt 0:00:39]} Qc7 {[%emt 0:00:38]} 12. Re1 {[%emt 0:00:13]} h5 {[%emt 0:01:20]} 13. h3 {[%emt 0:02:29]} h4 {[%emt 0:01:40]} 14. Ba4 {[%emt 0:01:40]} Kf8 {[%emt 0:01:45]} 15. f4 {[%emt 0:00:50]} Nh5 {[%emt 0:01:24]} 16. fxe5 {[%emt 0:00:30]} dxe5 {[%emt 0:00:58]} 17. Qf3 {[%emt 0:00:00]} g6 {[%emt 0:02:49]} 18. Rad1 {[%emt 0:00:18]} Kg7 {[%emt 0:00:39]} 19. Bb3 {[%emt 0:00:42]} Bf6 {[%emt 0:00:23]} 20. Na4 {[%emt 0:00:14]} Rad8 {[%emt 0:00:20]} 21. Nc5 {[%emt 0:00:27]} Bc8 {[%emt 0:00:06]} 22. Kg1 {[%emt 0:00:30]} Rxd1 {[%emt 0:00:35]} 23. Rxd1 {[%emt 0:00:03]} Rd8 {[%emt 0:00:01]} 24. Rf1 {[%emt 0:00:14]} Qe7 {[%emt 0:00:24]} 25. Nd3 {[%emt 0:00:53]} Ba6 {[%emt 0:00:01]} 26. Bc5 {[%emt 0:00:15]} Qc7 {[%emt 0:00:04]} 27. Rd1 {[%emt 0:00:27]} Bxd3 {[%emt 0:00:12]} 28. Rxd3 {[%emt 0:00:04]} Nf4 {[%emt 0:00:03]} 29. Rxd8 {[%emt 0:00:13]} Qxd8 {[%emt 0:00:02]} 30. Bxa7 {[%emt 0:00:09]} Qa5 {[%emt 0:00:06]} 31. Bf2 {[%emt 0:00:06]} Qd2 {[%emt 0:00:04]} 32. Qe3 {[%emt 0:00:04]} Qd1+ {[%emt 0:00:06]} 33. Qe1 {[%emt 0:00:01]} Qd6 {[%emt 0:00:07]} 34. Bxh4 {[%emt 0:00:03]} Bxh4 {[%emt 0:00:07]} 35. Qxh4 {[%emt 0:00:00]} Qd1+ {[%emt 0:00:01]} 36. Kh2 {[%emt 0:00:03]} Qe2 {[%emt 0:00:03]} 37. Qg3 {[%emt 0:00:15]} Qxe4 {[%emt 0:00:02]} 38. a4 {[%emt 0:00:05]} Qd4 {[%emt 0:00:05]} 39. Qf3 {[%emt 0:00:06]} Qd2 {[%emt 0:00:17]} 40. Kg3 {[%emt 0:00:07]} Qe1+ {[%emt 0:00:03]} 41. Kh2 {[%emt 0:00:02]} Qd2 {[%emt 0:00:01]} 42. a5 {[%emt 0:00:16]} Qxa5 {[%emt 0:00:04]} 43. Qf2 {[%emt 0:00:00]} Qb4 {[%emt 0:00:11]} 44. g3 {[%emt 0:00:00]} Nd5 {[%emt 0:00:02]} 45. Qe2 {[%emt 0:00:15]} Qd4 {[%emt 0:00:06]} 46. Kg2 {[%emt 0:00:00]} Qxb2 {[%emt 0:00:08]} 47. Bc4 {[%emt 0:00:03]} Qd4 {[%emt 0:00:02]} 48. Bb3 {[%emt 0:00:00]} Qe3 {[%emt 0:00:08]} 49. Qxe3 {[%emt 0:00:06]} Nxe3+ {[%emt 0:00:01]} 50. Kf3 {[%emt 0:00:00]} Nd5 {[%emt 0:00:02]} 51. Ke4 {[%emt 0:00:04]} Ne7 {[%emt 0:00:12]} 52. Kxe5 {[%emt 0:00:02]} Nf5 {[%emt 0:00:04]} 53. g4 {[%emt 0:00:03]} Ne3 {[%emt 0:00:02]} 54. Kd6 {[%emt 0:00:03]} f5 {[%emt 0:00:02]} 55. gxf5 {[%emt 0:00:20]} gxf5 {[%emt 0:00:04]} 56. Ke5 {[%emt 0:00:07]} Kg6 {[%emt 0:00:04]} 57. Kf4 {[%emt 0:00:03]} Ng2+ {[%emt 0:00:06]} 58. Kf3 {[%emt 0:00:03]} Ne1+ {[%emt 0:00:02]} 59. Kf2 {[%emt 0:00:05]} Nxc2 {[%emt 0:00:25]} 60. Bxc2 {[%emt 0:00:01]} Kg5 {[%emt 0:00:00]} 61. Kg3 {[%emt 0:00:02]} f4+ {[%emt 0:00:00]} 62. Kf3 {[%emt 0:00:08]} c5 {[%emt 0:00:00]} 63. Bd3 {[%emt 0:00:05]} Kh4 {[%emt 0:00:00]} 64. Bf5 {[%emt 0:00:02]} c4 {[%emt 0:00:00]} 65. Kxf4 {[%emt 0:00:01]} c3 {[%emt 0:00:00]} 66. Kf3 {[%emt 0:00:18]} c2 {[%emt 0:00:00]} 67. Bxc2 {[%emt 0:00:01]} Kxh3 {[%emt 0:00:00]} 68. Ke4 {[%emt 0:00:18]} 1/2-1/2

[Event "Polish University-ch Teams 2024"]
[Site "Lublin"]
[Date "2024.02.25"]
[Round "6.19"]
[White "Pacan-Milej, Kosma"]
[Black "Mis, Mieszko"]
[Result "1/2-1/2"]
[ECO "E48"]
[WhiteElo "2438"]
[BlackElo "2325"]
[Annotator "TA"]
[PlyCount "106"]
[EventDate "2024.02.22"]
[EventType "team-tourn"]
[EventCountry "POL"]
[SourceTitle "playchess.com"]
[Source "ChessBase"]
[SourceQuality "1"]
[TimeControl "900+5"]

{[%evp 24,106,33,50,41,49,50,-16,8,14,7,8,3,8,2,1,54,-5,0,-7,-2,-6,0,0,74,78,75,68,81,75,85,78,97,83,72,29,123,120,137,137,137,137,258,236,258,258,256,254,248,249,247,222,203,168,168,171,168,158,166,11,191,127,127,133,139,127,127,127,162,127,127,127,204,147,195,0,183,0,196,0,202,0,196,0,197]} 1. d4 {[%emt 0:00:02]} Nf6 {[%emt 0:01:50]} 2. c4 {[%emt 0:00:03]} e6 {[%emt 0:00:04]} 3. Nc3 {[%emt 0:00:01]} Bb4 {[%emt 0:00:05]} 4. e3 {[%emt 0:00:02]} O-O {[%emt 0:00:08]} 5. Bd3 {[%emt 0:00:02]} c5 {[%emt 0:00:03]} 6. Nge2 {[%emt 0:00:36]} d5 {[%emt 0:00:36]} 7. cxd5 {[%emt 0:00:20]} cxd4 {[%emt 0:00:04]} 8. exd4 {[%emt 0:00:11]} Nxd5 {[%emt 0:00:36]} 9. O-O {[%emt 0:00:07]} Nc6 {[%emt 0:00:22]} 10. a3 {[%emt 0:00:08]} Be7 {[%emt 0:00:34]} 11. Bc2 {[%emt 0:00:41]} Nf6 {[%emt 0:00:33]} 12. Qd3 {[%emt 0:00:19]} b6 {[%emt 0:01:21]} 13. Bg5 {[%emt 0:00:16] [#] And now Bxf6 would win.} g6 {[%emt 0:00:15]} 14. Rad1 {[%emt 0:01:47]} Bb7 {[%emt 0:00:05]} 15. Ng3 {[%emt 0:00:24]} (15. Rfe1 $14) 15... Rc8 {[%emt 0:00:23]} 16. Rfe1 {[%emt 0:02:02]} Na5 {[%emt 0:00:14]} 17. Bh6 $1 {[%emt 0:00:30]} Re8 {[%emt 0:00:16]} 18. Ba4 {[%emt 0:00:27]} Bc6 {[%emt 0:00:21]} 19. Bxc6 {[%emt 0:00:23]} Rxc6 {[%emt 0:00:38]} ({Black should play} 19... Nxc6 $11 20. h3 Rc7) 20. d5 {[%emt 0:00:52]} ({Better is} 20. Nge4 $14) 20... exd5 $11 {[%emt 0:02:27]} 21. Nxd5 {[%emt 0:00:15]} Nxd5 {[%emt 0:01:42]} (21... Qxd5 {simplifies} 22. Qxd5 Nxd5 23. Rxd5 Rcc8) 22. Qxd5 {[%emt 0:00:11]} Qxd5 {[%emt 0:00:36]} 23. Rxd5 $40 {[%emt 0:00:03][%cal Oe1e7][%mdl 128] Rxe7! is the strong threat. White attacks.} Re6 {[%emt 0:00:15]} (23... Rcc8 $11 {keeps the balance.}) 24. Rxe6 $16 {[%emt 0:00:09]} fxe6 {[%emt 0:00:02]} 25. Rd7 {[%emt 0:00:19]} Nc4 {[%emt 0:00:35]} 26. b3 {[%emt 0:00:40]} Nxa3 {[%emt 0:00:25]} 27. Rxa7 {[%emt 0:00:03] White is more active.} b5 {[%emt 0:00:41]} 28. Ne4 {[%emt 0:00:21]} Nc2 {[%emt 0:00:34]} 29. Bg5 {[%emt 0:01:54]} Rd8 {[%emt 0:00:59]} 30. h4 {[%emt 0:00:27][%cal Bh2h4,Bh4g5][%mdl 32]} (30. Bxe7 $2 Rd1#) 30... Rd4 {[%emt 0:00:32]} 31. f3 {[%emt 0:00:56]} Bxg5 {[%emt 0:00:02]} 32. hxg5 {[%emt 0:00:04][%mdl 4096] Endgame. KRN-KRN} Rd3 {[%emt 0:00:11]} (32... Kf8 $16 {was necessary.} 33. Rxh7 b4) 33. Nf6+ $18 {[%emt 0:00:04]} Kf8 {[%emt 0:00:01]} 34. Nxh7+ {[%emt 0:00:02]} (34. Rxh7 b4 $16) 34... Kg8 {[%emt 0:00:05]} 35. Nf6+ {[%emt 0:00:02]} Kf8 {[%emt 0:00:01] [#]} 36. Nd7+ $1 {[%emt 0:01:04]} Kg8 {[%emt 0:00:15]} 37. Ra8+ {[%emt 0:00:13]} Kg7 {[%emt 0:00:03]} 38. Nc5 {[%emt 0:00:02]} Rd1+ {[%emt 0:00:11]} 39. Kh2 {[%emt 0:00:02]} Nd4 {[%emt 0:00:04]} 40. Ra7+ {[%emt 0:00:26]} Kg8 {[%emt 0:00:05]} 41. Rd7 $2 {[%emt 0:00:47]} (41. b4 $18) 41... e5 $2 {[%emt 0:00:01]} (41... Rd2 $1 $11 {and Black stays safe.}) 42. Ne4 {[%emt 0:00:41]} (42. Re7 $18) 42... Kf8 $16 {[%emt 0:00:07][%cal Od4f3] aiming for ...Nxf3+!} ({But not} 42... Nxf3+ $2 43. gxf3 Rf1 (43... Rxd7 $2 {too greedy.} 44. Nf6+ Kf7 45. Nxd7 $18) 44. Kg3 $18) 43. Rd6 {[%emt 0:00:11]} Kf7 {[%emt 0:00:01]} 44. Rf6+ {[%emt 0:00:14]} Kg7 {[%emt 0:00:01]} 45. Rb6 {[%emt 0:00:04]} Rd3 {[%emt 0:00:12]} 46. Rb7+ {[%emt 0:00:01]} Kf8 {[%emt 0:00:03]} 47. b4 {[%emt 0:00:13]} Rb3 {[%emt 0:00:02]} (47... Re3 $16 48. Rb6 Re2) 48. Rb6 {[%emt 0:00:10]} Kg7 {[%emt 0:00:03]} (48... Kf7 $16 49. Rb7+ Ke8) 49. Rb7+ {[%emt 0:00:07]} Kf8 {[%emt 0:00:01]} 50. Rb6 {[%emt 0:00:03]} Kg7 {[%emt 0:00:00]} 51. Rb7+ {[%emt 0:00:08]} Kf8 {[%emt 0:00:01]} 52. Rb6 {[%emt 0:00:08]} Kg7 {[%emt 0:00:01]} 53. Rb7+ {[%emt 0:00:06]} Kf8 {[%emt 0:00:02] Weighted Error Value: White=0.40/Black=0.22 (precise) .  Loses game:     	---       	Black=1      Mistake:       	White=4     	Black=6      Inaccurate:     	White=1     	---        OK:         	White=12    	Black=13     Best:        	White=6     	Black=10     Strong:       	White=1     	---} 1/2-1/2